fUST/lending_fUST_20240902
["ID","MTS","AMOUNT","RATE_DAILY","PERIOD"]
[336983689,1725274284436,-320.0,0.0003726,120]
[336983690,1725274284446,-320.0,0.0003726,120]
[336983691,1725274284456,-320.0,0.0003726,120]
[336983692,1725274284466,-320.0,0.0003726,120]
[336983693,1725274284476,-320.0,0.0003726,120]
[336983694,1725274284486,-320.0,0.0003726,120]
[336983695,1725274284583,-320.0,0.0003726,120]
[336983696,1725274284593,-320.0,0.0003726,120]
[336983697,1725274284603,-320.0,0.0003726,120]
[336983698,1725274284614,-320.0,0.0003726,120]
[336983699,1725274284626,-653.0,0.0003726,120]
[336983700,1725274284636,-653.0,0.0003726,120]
[336983701,1725274284646,-653.0,0.0003726,120]
[336983702,1725274284656,-653.0,0.0003726,120]
[336983703,1725274284666,-653.0,0.0003726,120]
[336983704,1725274284678,-653.0,0.0003726,120]
[336983705,1725274284688,-653.0,0.0003726,120]
[336983706,1725274284698,-653.0,0.0003726,120]
[336983707,1725274284708,-653.0,0.0003726,120]
[336983708,1725274284718,-653.0,0.0003726,120]
[336983709,1725274284728,-653.0,0.0003726,120]
[336983710,1725274284738,-653.0,0.0003726,120]
[336983711,1725274284748,-653.0,0.0003726,120]
[336983712,1725274284758,-151.0,0.00037479,120]
[336983713,1725274284771,-1000.0,0.000375,2]
[336983714,1725274284781,-1000.0,0.000375,2]
[336983715,1725274284791,-5934.02,0.00037808,19]
[336983716,1725274284801,-4000.0,0.00038,120]
[336983717,1725274284810,-2046.46007298,0.00038,30]
[336983718,1725274284820,-700.0,0.00038,120]
[336983719,1725274284830,-2543.6,0.00038,32]
[336983720,1725274284840,-151.0,0.00038384,120]
[336983721,1725274284849,-1720.37502842,0.000386,30]
[336983722,1725274284859,-247.65639713,0.000386,30]
[336983723,1725274284869,-13827.85013074,0.000386,30]
[336983724,1725274284879,-14380.32657047,0.000386,30]
[336983725,1725274284890,-500.0,0.00038628,2]
[336983726,1725274284900,-523.0,0.00038724,2]
[336983727,1725274284911,-150.0,0.00038724,2]
[336983728,1725274284921,-178.654999,0.00038795,2]
[336983729,1725274284931,-5934.02,0.00038904,21]
[336983730,1725274284941,-214.68846768,0.00039,120]
[336983731,1725274284951,-220.0,0.00039,2]
[336983732,1725274284961,-220.0,0.00039,2]
[336983733,1725274284971,-220.0,0.00039,2]
[336983734,1725274284981,-500.0,0.00039248,2]
[336983735,1725274284992,-1259.22400206,0.000393,120]
[336983736,1725274285002,-1000.0,0.000395,2]
[336983737,1725274285012,-500.0,0.00039577,2]
[336983738,1725274285021,-1266.0,0.00039617,30]
[336983739,1725274285031,-188.62254612,0.000397,7]
[336983740,1725274285040,-151.0,0.00039781,120]
[336983741,1725274285050,-662.09604619,0.000399,120]
[336983742,1725274285059,-151.0,0.00039973,120]
[336983743,1725274285070,-2905.29354358,0.0004,4]
[336983744,1725274285080,-4850.17976844,0.0004,2]
[336983745,1725274285089,-382.5735306,0.0004,30]
[336983746,1725274285099,-1001.69303115,0.0004,120]
[336983747,1725274285109,-678.51719263,0.0004,120]
[336983748,1725274285118,-30584.73792741,0.0004,120]
[336983749,1725274285128,-742.43444803,0.0004,120]
[336983750,1725274285138,-30000.0,0.0004,120]
[336983751,1725274285147,-283.0,0.0004,120]
[336983752,1725274285157,-2086.7098866,0.0004,120]
[336983753,1725274285167,-1024.23536521,0.0004,120]
[336983754,1725274285176,-1000.0,0.0004,2]
[336983755,1725274285186,-700.0,0.0004,120]
[336983756,1725274285195,-155.0,0.0004,2]
[336983757,1725274285204,-580.9,0.0004,120]
[336983758,1725274285213,-200.0,0.0004,120]
[336983759,1725274285224,-1200.0,0.0004,120]
[336983760,1725274285233,-254.2004,0.0004,30]
[336983761,1725274285243,-5934.02,0.0004,23]
[336983762,1725274285253,-359.77275978,0.000402,120]
[336983763,1725274285263,-200.0,0.0004042,120]
[336983764,1725274285272,-11828.14103774,0.000409,2]
[336983765,1725274285282,-200.0,0.00040991,120]
[336983766,1725274285291,-2345.37,0.00041,14]
[336983767,1725274285300,-160.2,0.00041041,31]
[336983768,1725274285309,-160.2,0.00041041,31]
[336983769,1725274285318,-160.2,0.00041041,31]
[336983770,1725274285327,-160.2,0.00041041,31]
[336983771,1725274285336,-152.0,0.00041041,31]
[336983772,1725274285345,-152.0,0.00041041,31]
[336983773,1725274285355,-5934.02,0.00041095,120]
[336983774,1725274285364,-179.7696375,0.00041096,2]
[336983775,1725274285373,-151.0,0.00041178,120]
[336983776,1725274285382,-1000.0,0.000413,30]
[336983777,1725274285392,-353.993599,0.00041553,120]
[336983778,1725274285401,-272.435403,0.00041701,120]
[336983779,1725274285410,-523.0,0.00041724,2]
[336983780,1725274285420,-150.0,0.00041724,2]
[336983781,1725274285429,-30000.0,0.00042,21]
[336983782,1725274285439,-250000.0,0.00042,30]
[336983783,1725274285448,-700.0,0.00042,120]
[336983784,1725274285458,-3000.0,0.00042,10]
[336983785,1725274285467,-250.0,0.00042,30]
[336983786,1725274285476,-220.0,0.00042,2]
[336983787,1725274285486,-220.0,0.00042,2]
[336983788,1725274285496,-5934.02,0.00042191,120]
[336983789,1725274285505,-766.84477921,0.000424,120]
[336983790,1725274285515,-151.0,0.00042466,120]
[336983791,1725274285524,-1000.0,0.000425,2]
[336983792,1725274285533,-151.0,0.00042575,120]
[336983793,1725274285543,-5000.0,0.000428,30]
[336983794,1725274285552,-1089.60791336,0.000429,30]
[336983795,1725274285562,-233.46146535,0.00043,120]
[336983796,1725274285572,-5934.02,0.00043287,120]
[336983797,1725274285581,-60000.0,0.000433,120]
[336983798,1725274285591,-1000.0,0.000435,2]
[336983799,1725274285600,-9477.95988979,0.000438,4]
[336983800,1725274285609,-500.0,0.00043835,120]
[336983801,1725274285622,-500.0,0.00043835,120]
[336983802,1725274285631,-600.0,0.00043835,120]
[336983803,1725274285641,-600.0,0.00043835,120]
[336983804,1725274285651,-600.0,0.00043835,120]
[336983805,1725274285661,-600.0,0.00043835,120]
[336983806,1725274285671,-597.9727933,0.00043835,120]
[336983807,1725274285681,-151.0,0.00043973,120]
[336983808,1725274285691,-1000.0,0.00044,2]
[336983809,1725274285700,-700.0,0.00044,120]
[336983810,1725274285710,-250.0,0.00044,30]
[336983811,1725274285720,-500.0,0.00044191,120]
[336983812,1725274285729,-500.0,0.00044191,120]
[336983813,1725274285738,-5934.02,0.00044383,120]
[336983814,1725274285748,-500.0,0.00044547,120]
[336983815,1725274285757,-500.0,0.00044547,120]
[336983816,1725274285767,-390.95844671,0.00044568,120]
[336983817,1725274285777,-152.32070971,0.00044619,53]
[336983818,1725274285788,-523.0,0.00044724,2]
[336983819,1725274285798,-500.0,0.00044904,120]
[336983820,1725274285809,-500.0,0.00044904,120]
[336983821,1725274285819,-151.0,0.00044959,120]
[336983822,1725274285830,-6443.70437921,0.00045,2]
[336983823,1725274285840,-834.3573361,0.00045,20]
[336983824,1725274285850,-30000.0,0.00045,24]
[336983825,1725274285860,-250000.0,0.00045,30]
[336983826,1725274285869,-2567.70771647,0.00045,120]
[336983827,1725274285878,-20000.0,0.00045,20]
[336983828,1725274285887,-1000.0,0.00045,2]
[336983829,1725274285897,-200.0,0.00045,2]
[336983830,1725274285907,-40382.40841172,0.00045,120]
[336983831,1725274285917,-188.55544277,0.00045,120]
[336983832,1725274285926,-4097.0,0.00045,30]
[336983833,1725274285936,-220.0,0.00045,2]
[336983834,1725274285945,-2517.43903828,0.00045226,28]
[336983835,1725274285955,-500.0,0.0004526,120]
[336983836,1725274285965,-500.0,0.0004526,120]
[336983837,1725274285974,-151.0,0.0004537,120]
[336983838,1725274285983,-400000.0,0.0004544,30]
[336983839,1725274285993,-5934.02,0.00045479,120]
[336983840,1725274286003,-3000.0,0.00045554,10]
[336983841,1725274286013,-500.0,0.00045616,120]
[336983842,1725274286023,-40470.2198159,0.000459,30]
[336983843,1725274286032,-523.65933156,0.00045972,120]
[336983844,1725274286042,-163.18142786,0.00046,120]
[336983845,1725274286052,-700.0,0.00046,120]
[336983846,1725274286062,-107046.7758839,0.00046,120]
[336983847,1725274286071,-1663.03588078,0.00046,120]
[336983848,1725274286081,-250.0,0.00046,30]
[336983849,1725274286091,-568604.25895076,0.000463,50]
[336983850,1725274286101,-418.91271121,0.000465,120]
[336983851,1725274286110,-5934.02,0.00046575,120]
[336983852,1725274286120,-127292.73883064,0.000466,120]
[336983853,1725274286129,-151.0,0.00046767,120]
[336983854,1725274286139,-894.76433561,0.000468,60]
[336983855,1725274286148,-1005.06014765,0.000468,120]
[336983856,1725274286158,-1870.10782747,0.000468,120]
[336983857,1725274286168,-400000.0,0.0004744,30]
[336983858,1725274286178,-151.0,0.00047452,120]
[336983859,1725274286189,-353.993599,0.00047489,120]
[336983860,1725274286199,-30000.0,0.000475,30]
[336983861,1725274286209,-1000.0,0.000475,2]
[336983862,1725274286220,-272.435403,0.00047657,120]
[336983863,1725274286311,-5934.02,0.00047671,120]
[336983864,1725274286322,-523.0,0.00047724,2]
[336983865,1725274286331,-198.10230634,0.0004781,120]
[336983866,1725274286340,-4692.0,0.00047888,120]
[336983867,1725274286350,-281.29174352,0.00048,120]
[336983868,1725274286360,-382.09659885,0.00048,120]
[336983869,1725274286369,-700.0,0.00048,120]
[336983870,1725274286379,-1059.1,0.00048,30]
[336983871,1725274286388,-1687.89,0.00048,30]
[336983872,1725274286397,-250.0,0.00048,30]
[336983873,1725274286407,-151.0,0.00048164,120]
[336983874,1725274286419,-1114.78003006,0.00048398,8]
[336983875,1725274286429,-732.43713254,0.00048398,8]
[336983876,1725274286439,-5934.02,0.00048767,120]
[336983877,1725274286448,-1000.0,0.00048999,120]
[336983878,1725274286458,-205.90608895,0.00049,15]
[336983879,1725274286467,-31750.79214004,0.00049,30]
[336983880,1725274286477,-3000.0,0.00049107,10]
[336983881,1725274286487,-1651.06086141,0.00049315,120]
[336983882,1725274286497,-500.0,0.00049315,31]
[336983883,1725274286506,-500.0,0.00049315,31]
[336983884,1725274286517,-258.89562121,0.00049315,31]
[336983885,1725274286527,-500.0,0.00049315,31]
[336983886,1725274286539,-500.0,0.00049315,31]
[336983887,1725274286548,-500.0,0.00049315,31]
[336983888,1725274286557,-306.54395791,0.00049315,31]
[336983889,1725274286567,-151.0,0.00049562,120]
[336983890,1725274286577,-5934.02,0.00049863,120]
[336983891,1725274286586,-31799.97352793,0.00049878,45]
[336983892,1725274286596,-1000.0,0.000499,120]
[336983893,1725274286607,-151.0,0.00049945,120]
[336983894,1725274286619,-1000.0,0.00049999,120]
[336983895,1725274286629,-7635.0,0.0005,30]
[336983896,1725274286638,-521.00189127,0.0005,10]
[336983897,1725274286648,-193.74222101,0.0005,30]
[336983898,1725274286660,-212.76534229,0.0005,20]
[336983899,1725274286669,-217.27999809,0.0005,4]
[336983900,1725274286679,-983.52216235,0.0005,60]
[336983901,1725274286688,-517.97476673,0.0005,120]
[336983902,1725274286699,-2132.62792347,0.0005,120]
[336983903,1725274286708,-1501.79707818,0.0005,120]
[336983904,1725274286717,-700.0,0.0005,120]
[336983905,1725274286728,-3000.0,0.0005,2]
[336983906,1725274286737,-2448.82728582,0.0005,120]
[336983907,1725274286747,-250.0,0.0005,30]
[336983908,1725274286757,-500.0,0.000503,60]
[336983909,1725274286767,-1000.0,0.000506,60]
[336983910,1725274286777,-512.7,0.00050724,120]
[336983911,1725274286787,-1000.0,0.000509,60]
[336983912,1725274286797,-5934.02,0.00050958,120]
[336983913,1725274286807,-151.0,0.00050959,120]
[336983914,1725274286818,-150.0,0.00051,90]
[336983915,1725274286829,-3000.0,0.00051,85]
[336983916,1725274286839,-3000.0,0.0005101,85]
[336983917,1725274286850,-3000.0,0.0005102,85]
[336983918,1725274286862,-3000.0,0.0005103,85]
[336983919,1725274286872,-3000.0,0.0005104,85]
[336983920,1725274286882,-3000.0,0.0005105,85]
[336983921,1725274286892,-3000.0,0.0005106,85]
[336983922,1725274286902,-3000.0,0.0005107,85]
[336983923,1725274286913,-5154.018837,0.0005108,85]
[336983924,1725274286927,-150.0,0.00052,90]
[336983925,1725274286937,-700.0,0.00052,120]
[336983926,1725274286948,-12000.0,0.00052,120]
[336983927,1725274286958,-5934.02,0.00052054,120]
[336983928,1725274286968,-152.32070971,0.00052119,86]
[336983929,1725274286977,-151.0,0.00052356,120]
[336983930,1725274286986,-151.0,0.00052438,120]
[336983931,1725274286996,-1000.0,0.000525,2]
[336983932,1725274287006,-3000.0,0.00052661,120]
[336983933,1725274287017,-1500.0,0.000529,2]
[336983934,1725274287026,-1500.0,0.000529,2]
[336983935,1725274287036,-1500.0,0.000529,2]
[336983936,1725274287046,-1478.31,0.000529,2]
[336983937,1725274287055,-700.01065951,0.00053,120]
[336983938,1725274287065,-200.0,0.00053,90]
[336983939,1725274287075,-5934.02,0.0005315,120]
[336983940,1725274287084,-353.993599,0.00053425,120]
[336983941,1725274287094,-272.435403,0.00053612,120]
[336983942,1725274287103,-151.0,0.00053753,120]
[336983943,1725274287113,-1368.8769,0.000538,110]
[336983944,1725274287123,-1059.38767857,0.00054,120]
[336983945,1725274287133,-197.97271633,0.00054,120]
[336983946,1725274287142,-500.0,0.00054,120]
[336983947,1725274287152,-5934.02,0.00054246,120]
[336983948,1725274287161,-500.0,0.00054794,120]
[336983949,1725274287171,-500.0,0.00054794,120]
[336983950,1725274287180,-500.0,0.00054794,120]
[336983951,1725274287190,-500.0,0.00054794,120]
[336983952,1725274287200,-500.0,0.00054794,120]
[336983953,1725274287211,-500.0,0.00054794,120]
[336983954,1725274287222,-500.0,0.00054794,120]
[336983955,1725274287232,-500.0,0.00054794,120]
[336983956,1725274287242,-500.0,0.00054794,120]
[336983957,1725274287252,-500.0,0.00054794,120]
[336983958,1725274287261,-500.0,0.00054794,120]
[336983959,1725274287271,-500.0,0.00054794,120]
[336983960,1725274287280,-500.0,0.00054794,120]
[336983961,1725274287290,-390.24629975,0.00054794,120]
[336983962,1725274287300,-500.0,0.00054794,2]
[336983963,1725274287310,-500.0,0.00054794,2]
[336983964,1725274287319,-500.0,0.00054794,2]
[336983965,1725274287329,-500.0,0.00054794,2]
[336983966,1725274287339,-500.0,0.00054794,2]
[336983967,1725274287349,-500.0,0.00054794,2]
[336983968,1725274287358,-500.0,0.00054794,2]
[336983969,1725274287367,-500.0,0.00054794,2]
[336983970,1725274287376,-500.0,0.00054794,2]
[336983971,1725274287386,-500.0,0.00054794,2]
[336983972,1725274287395,-500.0,0.00054794,2]
[336983973,1725274287405,-500.0,0.00054794,15]
[336983974,1725274287414,-500.0,0.00054794,15]
[336983975,1725274287423,-282.30193217,0.00054794,15]
[336983976,1725274287433,-3425.89770428,0.00054795,120]
[336983977,1725274287442,-3425.89770428,0.00054795,120]
[336983978,1725274287452,-3425.89770428,0.00054795,120]
[336983979,1725274287462,-3425.89770428,0.00054795,120]
[336983980,1725274287472,-3425.89770428,0.00054795,120]
[336983981,1725274287481,-3425.89770428,0.00054795,120]
[336983982,1725274287491,-3425.89770428,0.00054795,120]
[336983983,1725274287500,-3425.89770428,0.00054795,120]
[336983984,1725274287510,-3425.89770428,0.00054795,120]
[336983985,1725274287521,-3425.89770428,0.00054795,120]
[336983986,1725274287530,-3425.89770428,0.00054795,120]
[336983987,1725274287540,-3425.89770428,0.00054795,120]
[336983988,1725274287550,-3425.89770428,0.00054795,120]
[336983989,1725274287559,-3425.89770428,0.00054795,120]
[336983990,1725274287569,-3425.89770428,0.00054795,120]
[336983991,1725274287578,-3425.89770428,0.00054795,120]
[336983992,1725274287588,-3425.89770428,0.00054795,120]
[336983993,1725274287598,-3425.89770428,0.00054795,120]
[336983994,1725274287608,-3425.89770428,0.00054795,120]
[336983995,1725274287619,-3425.89770428,0.00054795,120]
[336983996,1725274287630,-3425.89770428,0.00054795,120]
[336983997,1725274287639,-3425.89770428,0.00054795,120]
[336983998,1725274287649,-3425.89770428,0.00054795,120]
[336983999,1725274287658,-3425.89770428,0.00054795,120]
[336984000,1725274287669,-3425.89770428,0.00054795,120]
[336984001,1725274287680,-3425.89770428,0.00054795,120]
[336984002,1725274287690,-3425.89770428,0.00054795,120]
[336984003,1725274287700,-3425.89770428,0.00054795,120]
[336984004,1725274287709,-3425.89770428,0.00054795,120]
[336984005,1725274287718,-3425.89770428,0.00054795,120]
[336984006,1725274287727,-3425.89770428,0.00054795,120]
[336984007,1725274287737,-3425.89770428,0.00054795,120]
[336984008,1725274287746,-3425.89770428,0.00054795,120]
[336984009,1725274287755,-3425.89770428,0.00054795,120]
[336984010,1725274287764,-3425.89770428,0.00054795,120]
[336984011,1725274287774,-3425.89770428,0.00054795,120]
[336984012,1725274287783,-3425.89770428,0.00054795,120]
[336984013,1725274287792,-3425.89770428,0.00054795,120]
[336984014,1725274287801,-3425.89770428,0.00054795,120]
[336984015,1725274287811,-151.0,0.00054932,120]
[336984016,1725274287820,-5468.43575666,0.00055,120]
[336984017,1725274287908,-500.0,0.00055,120]
[336984018,1725274287919,-569.0,0.00055,80]
[336984019,1725274287932,-2498.25252378,0.00055,120]
[336984020,1725274287942,-151.0,0.00055151,120]
[336984021,1725274287953,-5934.1564674,0.00055342,120]
[336984022,1725274287964,-2517.43903828,0.00055561,28]
[336984023,1725274287974,-150.0,0.00056,120]
[336984024,1725274287984,-500.0,0.00056,120]
[336984025,1725274287994,-2345.37,0.00056,30]
[336984026,1725274288004,-3000.0,0.00056214,120]
[336984027,1725274288014,-151.0,0.00056548,120]
[336984028,1725274288023,-50010.24912972,0.0005698,120]
[336984029,1725274288034,-150.0,0.00057,120]
[336984030,1725274288043,-151.0,0.00057425,120]
[336984031,1725274288055,-151.0,0.00057945,120]
[336984032,1725274288065,-200.0,0.00058,120]
[336984033,1725274288074,-500.0,0.00058,120]
[336984034,1725274288084,-151.0,0.00059342,120]
[336984035,1725274288095,-272.435403,0.00059567,120]
[336984036,1725274288106,-152.32070971,0.00059619,118]
[336984037,1725274288115,-399.18,0.00059658,30]
[336984038,1725274288125,-3000.0,0.00059768,120]
[336984039,1725274288135,-151.0,0.00059918,120]
[336984040,1725274288144,-150.0,0.0006,120]
[336984041,1725274288153,-300.0,0.0006,120]
[336984042,1725274288163,-5498.25873428,0.0006,120]
[336984043,1725274288174,-688.14351585,0.0006,12]
[336984044,1725274288183,-1000.0,0.0006,120]
[336984045,1725274288192,-702.7582147,0.0006,120]
[336984046,1725274288202,-1000.0,0.0006,120]
[336984047,1725274288213,-1857.51697842,0.0006,120]
[336984048,1725274288224,-1109.21069973,0.0006,120]
[336984049,1725274288234,-2005.90091575,0.0006,30]
[336984050,1725274288245,-151.0,0.0006074,120]
[336984051,1725274288255,-150.0,0.00061,120]
[336984052,1725274288265,-4097.0,0.00061,30]
[336984053,1725274288275,-1000.0,0.00061649,30]
[336984054,1725274288284,-1000.0,0.00061649,30]
[336984055,1725274288294,-200.0,0.00062,120]
[336984056,1725274288303,-150.0,0.00062,120]
[336984057,1725274288312,-500.0,0.00062,120]
[336984058,1725274288321,-153.87,0.00062,30]
[336984059,1725274288331,-478.05030427,0.00062,120]
[336984060,1725274288341,-151.0,0.00062137,120]
[336984061,1725274288350,-151.0,0.00062411,120]
[336984062,1725274288359,-150.0,0.00063,120]
[336984063,1725274288369,-1002.5986,0.00063,120]
[336984064,1725274288379,-3000.0,0.00063321,120]
[336984065,1725274288388,-178.654999,0.00063342,2]
[336984066,1725274288398,-151.0,0.00063534,120]
[336984067,1725274288407,-200.0,0.00064,120]
[336984068,1725274288417,-500.0,0.00064,120]
[336984069,1725274288426,-329.45358654,0.000644,120]
[336984070,1725274288435,-151.0,0.00064904,120]
[336984071,1725274288446,-151.0,0.00064932,120]
[336984072,1725274288457,-5498.25873428,0.00065,120]
[336984073,1725274288467,-1000.0,0.00065,120]
[336984074,1725274288476,-1059.1,0.00065,30]
[336984075,1725274288486,-1687.89,0.00065,30]
[336984076,1725274288496,-272.435403,0.00065523,120]
[336984077,1725274288506,-2517.43903828,0.00065896,28]
[336984078,1725274288515,-500.0,0.00066,120]
[336984079,1725274288530,-151.0,0.00066329,120]
[336984080,1725274288539,-194.58191947,0.00066416,7]
[336984081,1725274288548,-3000.0,0.00066875,120]
[336984082,1725274288558,-152.32070971,0.00067119,120]
[336984083,1725274288567,-151.0,0.00067397,120]
[336984084,1725274288576,-151.0,0.00067726,120]
[336984085,1725274288586,-500.0,0.00068,120]
[336984086,1725274288595,-200.0,0.00068493,120]
[336984087,1725274288604,-3000.0,0.00069,120]
[336984088,1725274288614,-3000.0,0.0006901,120]
[336984089,1725274288628,-3000.0,0.0006902,120]
[336984090,1725274288638,-3000.0,0.0006903,120]
[336984091,1725274288649,-5492.411302,0.0006904,120]
[336984092,1725274288659,-151.0,0.00069123,120]
[336984093,1725274288669,-200.0,0.00069863,120]
[336984094,1725274288678,-151.0,0.0006989,120]
[336984095,1725274288688,-300.0,0.0007,120]
[336984096,1725274288699,-5498.25873428,0.0007,120]
[336984097,1725274288708,-20000.0,0.0007,120]
[336984098,1725274288717,-1540.0,0.0007,120]
[336984099,1725274288727,-7685.26107445,0.0007,120]
[336984100,1725274288736,-850.0,0.0007,40]
[336984101,1725274288746,-3000.0,0.00070429,120]
[336984102,1725274288756,-151.0,0.00070521,120]
[336984103,1725274288765,-200.0,0.00071232,120]
[336984104,1725274288775,-272.435403,0.00071478,120]
[336984105,1725274288785,-151.0,0.00071918,120]
[336984106,1725274288795,-300.0,0.00072,120]
[336984107,1725274288804,-2345.37,0.00072,30]
[336984108,1725274288813,-151.0,0.00072384,120]
[336984109,1725274288823,-1500.68347722,0.000725,120]
[336984110,1725274288832,-200.0,0.00072602,120]
[336984111,1725274288842,-151.0,0.00073315,120]
[336984112,1725274288852,-200.0,0.00073972,120]
[336984113,1725274288862,-3000.0,0.00073982,120]
[336984114,1725274288872,-300.0,0.00074,120]
[336984115,1725274288882,-1000.0,0.00074399,120]
[336984116,1725274288891,-152.32070971,0.00074619,120]
[336984117,1725274288900,-151.0,0.00074712,120]
[336984118,1725274288910,-151.0,0.00074877,120]
[336984119,1725274288919,-1000.0,0.00075,2]
[336984120,1725274288929,-5498.25873428,0.00075,120]
[336984121,1725274288938,-7017.97758885,0.00075,120]
[336984122,1725274288948,-200.0,0.00075342,120]
[336984123,1725274288957,-6802.52586601,0.00075444,120]
[336984124,1725274288967,-4097.0,0.00076,30]
[336984125,1725274288976,-151.0,0.0007611,120]
[336984126,1725274288985,-2517.43903828,0.00076231,28]
[336984127,1725274288994,-200.0,0.00076712,120]
[336984128,1725274289004,-151.0,0.0007737,120]
[336984129,1725274289014,-272.435403,0.00077433,120]
[336984130,1725274289023,-151.0,0.00077507,120]
[336984131,1725274289032,-3000.0,0.00077536,120]
[336984132,1725274289042,-80133.58577169,0.000778,120]
[336984133,1725274289051,-44985.22645892,0.00078,120]
[336984134,1725274289061,-600.0,0.00078,120]
[336984135,1725274289070,-600.0,0.00078,120]
[336984136,1725274289080,-600.0,0.00078,120]
[336984137,1725274289089,-200.0,0.00078082,120]
[336984138,1725274289099,-151.0,0.00078904,120]
[336984139,1725274289108,-200.0,0.00079452,120]
[336984140,1725274289118,-151.0,0.00079863,120]
[336984141,1725274289127,-278.37645132,0.00079999,30]
[336984142,1725274289136,-300.0,0.0008,120]
[336984143,1725274289146,-13839.24627306,0.0008,2]
[336984144,1725274289155,-5498.25873428,0.0008,120]
[336984145,1725274289164,-665.78855339,0.0008,50]
[336984146,1725274289173,-99885.13954701,0.0008,120]
[336984147,1725274289183,-159.53,0.0008,7]
[336984148,1725274289192,-1943.601255,0.0008,120]
[336984149,1725274289202,-151.0,0.00080301,120]
[336984150,1725274289211,-200.0,0.00080821,120]
[336984151,1725274289221,-1059.1,0.00081,30]
[336984152,1725274289230,-1687.89,0.00081,30]
[336984153,1725274289239,-3000.0,0.00081089,120]
[336984154,1725274289248,-151.0,0.00081699,120]
[336984155,1725274289258,-152.32070971,0.00082119,120]
[336984156,1725274289268,-249.56538579,0.00082191,120]
[336984157,1725274289278,-5791.7,0.00082191,120]
[336984158,1725274289287,-151.0,0.00082356,120]
[336984159,1725274289390,-151.0,0.00083096,120]
[336984160,1725274289400,-272.435403,0.00083388,120]
[336984161,1725274289411,-480.0,0.00084418,120]
[336984162,1725274289421,-151.0,0.00084493,120]
[336984163,1725274289433,-3000.0,0.00084643,120]
[336984164,1725274289443,-151.0,0.00084849,120]
[336984165,1725274289452,-5498.25873428,0.00085,120]
[336984166,1725274289462,-151.0,0.0008589,120]
[336984167,1725274289473,-2517.43903828,0.00086565,28]
[336984168,1725274289485,-2999.999999,0.00087,120]
[336984169,1725274289496,-2345.37,0.00087,60]
[336984170,1725274289505,-151.0,0.00087288,120]
[336984171,1725274289516,-151.0,0.00087342,120]
[336984172,1725274289526,-480.0,0.00087681,120]
[336984173,1725274289536,-178.654999,0.0008789,120]
[336984174,1725274289546,-5000.0,0.00088,120]
[336984175,1725274289555,-3000.0,0.00088196,120]
[336984176,1725274289565,-1000.0,0.00088499,90]
[336984177,1725274289574,-151.0,0.00088685,120]
[336984178,1725274289584,-272.435403,0.00089344,120]
[336984179,1725274289594,-152.32070971,0.00089619,120]
[336984180,1725274289603,-335.0,0.00089836,120]
[336984181,1725274289613,-100000.0,0.0009,120]
[336984182,1725274289627,-300.0,0.0009,120]
[336984183,1725274289637,-5498.25873428,0.0009,120]
[336984184,1725274289647,-1000.0,0.0009,30]
[336984185,1725274289656,-500.0,0.0009,90]
[336984186,1725274289667,-210.0,0.00090082,120]
[336984187,1725274289676,-100000.0,0.00091,120]
[336984188,1725274289686,-4097.0,0.00091,60]